bitfinex-derivatives/quotes_BTCF0:USTF0_20250811
["timestamp","ask_amount","ask_price","bid_price","bid_amount"]
[1754872528355,0.6070295,119480.0,119470.0,0.8862065]
[1754872528664,0.82923751,119480.0,119470.0,0.0766865]
[1754872528853,1.31538504,119480.0,119470.0,0.0766865]
[1754872529050,1.31538504,119480.0,119470.0,0.0846865]
[1754872529265,1.09317703,119480.0,119470.0,0.0846865]
[1754872529467,0.93115494,119480.0,119470.0,0.0846865]
[1754872529762,0.98596295,119480.0,119470.0,0.0846865]
[1754872531954,1.00097949,119480.0,119470.0,0.0846865]
[1754872532959,0.92577703,119480.0,119470.0,0.0846865]
[1754872533657,1.06467703,119480.0,119470.0,0.0846865]
[1754872534162,1.06467703,119480.0,119470.0,0.0766865]
[1754872534562,1.08296802,119480.0,119470.0,0.0766865]
[1754872535962,1.15817048,119480.0,119470.0,0.0766865]
[1754872536262,1.08296802,119480.0,119470.0,0.0766865]
[1754872538163,1.1432017,119480.0,119470.0,0.0766865]
[1754872538864,1.14320226,119480.0,119470.0,0.0766865]
[1754872539058,1.14320246,119480.0,119470.0,0.0766865]
[1754872541368,1.14320246,119480.0,119470.0,0.0686865]
[1754872543674,1.00430246,119480.0,119470.0,0.0686865]
[1754872543969,0.78209445,119480.0,119470.0,0.0686865]
[1754872544365,0.62532049,119480.0,119470.0,0.29089451]
[1754872544670,0.62532049,119480.0,119470.0,0.0686865]
[1754872545373,0.48186099,119480.0,119470.0,0.29089451]
[1754872545567,0.48186099,119480.0,119470.0,0.87390252]
[1754872545568,0.01829099,119480.0,119470.0,0.87390252]
[1754872545870,0.01829099,119480.0,119470.0,0.65169451]
[1754872546262,0.05089099,119480.0,119470.0,0.65169451]
[1754872547059,0.05289099,119480.0,119470.0,0.65169451]
[1754872547276,0.05299099,119480.0,119470.0,0.65169451]
[1754872547467,0.05399099,119480.0,119470.0,0.65169451]
[1754872547770,0.05399099,119480.0,119470.0,0.66017358]
[1754872547975,0.02139099,119480.0,119470.0,0.66017358]
[1754872548271,0.02139099,119480.0,119470.0,0.65217358]
[1754872549272,0.05399099,119480.0,119470.0,0.65217358]
[1754872553174,0.09240099,119480.0,119470.0,0.65217358]
[1754872553473,0.05399099,119480.0,119470.0,0.65217358]
[1754872554869,0.17350099,119480.0,119470.0,0.4214865]
[1754872555075,0.17350099,119480.0,119470.0,1.4933265]
[1754872555478,0.17350099,119480.0,119470.0,1.4853265]
[1754872556076,0.17350099,119480.0,119470.0,0.6762865]
[1754872556277,0.17350099,119480.0,119470.0,1.4852465]
[1754872557879,0.17350099,119480.0,119470.0,0.6762865]
[1754872558080,0.25718069,119480.0,119470.0,0.4134865]
[1754872558280,0.25718069,119480.0,119470.0,1.2224065]
[1754872558779,0.25718069,119480.0,119470.0,0.4134865]
[1754872558975,0.25718069,119480.0,119470.0,1.2224065]
[1754872559177,0.25718069,119480.0,119470.0,0.4134865]
[1754872559379,0.17350099,119480.0,119470.0,0.4134865]
[1754872559578,0.17350099,119480.0,119470.0,1.2224065]
[1754872559880,0.4793886,119480.0,119470.0,0.4134865]
[1754872560080,0.4793886,119480.0,119470.0,1.2223665]
[1754872560283,0.25718059,119480.0,119470.0,1.2223665]
[1754872561282,0.17350099,119480.0,119470.0,1.2223665]
[1754872562170,0.05399099,119480.0,119470.0,1.44457451]
[1754872562684,0.17350099,119480.0,119470.0,1.43657451]
[1754872563084,0.11518099,119480.0,119470.0,1.43657451]
[1754872563476,0.02139099,119480.0,119470.0,1.43657451]
[1754872563675,0.05399099,119480.0,119470.0,1.43657451]
[1754872563882,0.05399099,119480.0,119470.0,1.69937451]
[1754872564586,0.17350099,119480.0,119470.0,1.69937451]
[1754872564786,0.17350099,119480.0,119470.0,1.69929451]
[1754872566482,0.11518099,119480.0,119470.0,1.69929451]
[1754872567283,0.17470099,119480.0,119470.0,1.69929451]
[1754872568584,0.11518099,119480.0,119470.0,1.69929451]
[1754872568979,0.09240099,119480.0,119470.0,1.69929451]
[1754872569588,0.09240099,119480.0,119470.0,1.69129451]
[1754872569788,0.09240099,119480.0,119470.0,1.69117451]
[1754872570791,0.09240099,119480.0,119470.0,1.4689665]
[1754872570993,0.17304099,119480.0,119470.0,1.69117451]
[1754872571288,0.17304099,119480.0,119470.0,0.88249451]
[1754872571487,0.17304099,119480.0,119470.0,1.69117451]
[1754872573292,0.11352099,119480.0,119470.0,1.69117451]
[1754872573901,0.02139099,119480.0,119470.0,1.69117451]
[1754872575398,0.02149698,119480.0,119470.0,1.69117451]
[1754872576596,0.02149698,119480.0,119470.0,1.65448801]
[1754872576792,0.05526698,119480.0,119470.0,1.73817451]
[1754872580895,0.05526698,119480.0,119470.0,1.5159665]
[1754872581093,0.05526698,119480.0,119470.0,1.73817451]
[1754872582796,0.05526698,119480.0,119470.0,1.5159665]
[1754872582999,0.05526698,119480.0,119470.0,1.73817451]
[1754872583706,0.05526698,119480.0,119470.0,1.73017451]
[1754872584409,0.05526698,119480.0,119470.0,1.5079665]
[1754872584612,0.05526698,119480.0,119470.0,1.73017451]
[1754872584804,0.05526698,119480.0,119470.0,1.5079665]
[1754872585005,0.05526698,119480.0,119470.0,1.73017451]
[1754872585399,0.05526698,119480.0,119470.0,1.5079665]
[1754872585606,0.05526698,119480.0,119470.0,1.73017451]
[1754872586402,0.05526698,119480.0,119470.0,0.92149451]
[1754872586601,0.17444698,119480.0,119470.0,1.5074465]
[1754872587413,0.25812668,119480.0,119470.0,1.5074465]
[1754872589617,0.17444698,119480.0,119470.0,1.5074465]
[1754872590203,0.61892668,119480.0,119470.0,0.2628]
[1754872590407,0.2028667,119470.0,119460.0,0.5975599]
[1754872590614,0.80437169,119470.0,119460.0,1.4055599]
[1754872590914,0.83814169,119470.0,119460.0,1.3975599]
[1754872591408,0.93453481,119470.0,119460.0,1.3975199]
[1754872591814,0.93453481,119470.0,119460.0,1.4005199]
[1754872593213,0.7123268,119470.0,119460.0,1.4005199]
[1754872593415,0.93553481,119470.0,119460.0,1.4025199]
[1754872593616,0.93553481,119470.0,119460.0,1.0559482]
[1754872593915,0.7133268,119470.0,119460.0,1.0559482]
[1754872594116,0.93453481,119470.0,119460.0,1.0539482]
[1754872594317,0.93653481,119470.0,119460.0,1.0549482]
[1754872594512,0.7143268,119470.0,119460.0,1.0549482]
[1754872594909,0.93653481,119470.0,119460.0,1.0549482]
[1754872596421,0.93753481,119470.0,119460.0,1.0519482]
[1754872597411,0.7153268,119470.0,119460.0,1.0519482]
[1754872597612,0.93753481,119470.0,119460.0,1.0519482]
[1754872597912,0.7153268,119470.0,119460.0,1.0439482]
[1754872598113,0.93753481,119470.0,119460.0,1.0439482]
[1754872598519,0.7153268,119470.0,119460.0,1.0439482]
[1754872598721,0.93753481,119470.0,119460.0,1.0439482]
[1754872600116,0.7153268,119470.0,119460.0,0.80888]
[1754872600420,0.99782942,119470.0,119460.0,0.74190559]
[1754872601424,0.99782942,119470.0,119460.0,0.001]
[1754872601621,0.2329101,119450.0,119440.0,0.01864542]
[1754872601812,0.8947097,119450.0,119440.0,0.82640542]
[1754872602009,1.00003313,119450.0,119440.0,0.91011262]
[1754872602215,0.92483067,119450.0,119440.0,0.82640542]
[1754872602422,0.92483067,119450.0,119440.0,0.91011262]
[1754872603012,0.92483067,119450.0,119440.0,0.81076]
[1754872603721,0.92583067,119450.0,119440.0,0.81276]
[1754872603922,0.92583067,119450.0,119440.0,0.8964674]
[1754872604926,0.92583067,119450.0,119440.0,0.8884674]
[1754872605115,0.98589179,119450.0,119440.0,0.8884674]
[1754872606124,0.92583067,119450.0,119440.0,0.8884674]
[1754872607428,0.70362266,119450.0,119440.0,0.8884674]
[1754872607720,0.76365782,119450.0,119440.0,0.8884674]
[1754872608117,0.40285782,119450.0,119440.0,0.8884674]
[1754872609126,0.62506583,119450.0,119440.0,0.8884674]
[1754872609826,0.40285782,119450.0,119440.0,0.8884674]
[1754872611527,0.62506583,119450.0,119440.0,0.8884674]
[1754872611820,0.34282266,119450.0,119440.0,0.8884674]
[1754872612026,0.34282266,119450.0,119440.0,0.8804674]
[1754872614528,0.56503067,119450.0,119440.0,0.8804674]
[1754872617327,0.92583067,119450.0,119440.0,0.8804674]
[1754872619030,0.92583067,119450.0,119440.0,0.8724674]
[1754872619233,0.98586583,119450.0,119440.0,0.8724674]
[1754872619732,0.76365782,119450.0,119440.0,0.8724674]
[1754872620632,0.40285782,119450.0,119440.0,1.2332674]
[1754872620834,0.34282266,119450.0,119440.0,1.2332674]
[1754872621034,0.34282266,119450.0,119440.0,0.8724674]
[1754872621232,0.40285782,119450.0,119440.0,0.8724674]
[1754872622334,0.62506583,119450.0,119440.0,0.8724674]
[1754872623539,0.40285782,119450.0,119440.0,0.8724674]
[1754872623741,0.62506583,119450.0,119440.0,0.8724674]
[1754872624133,0.40285782,119450.0,119440.0,0.8724674]
[1754872624338,0.62506583,119450.0,119440.0,0.8724674]
[1754872626046,0.62506583,119450.0,119440.0,0.8644674]
[1754872629146,0.56503067,119450.0,119440.0,0.8644674]
[1754872629843,0.34282266,119450.0,119440.0,0.8644674]
[1754872630056,0.56503067,119450.0,119440.0,0.8644674]
[1754872630258,0.64023313,119450.0,119440.0,0.8644674]
[1754872630752,0.56503067,119450.0,119440.0,0.8644674]
[1754872630952,0.92583067,119450.0,119440.0,0.0887074]
[1754872631259,1.00103313,119450.0,119440.0,0.8963074]
[1754872631852,1.00103313,119450.0,119440.0,0.0887074]
[1754872632058,1.00103313,119450.0,119440.0,0.81256]
[1754872632358,1.00103313,119450.0,119440.0,0.005]
[1754872632560,1.80859313,119450.0,119440.0,0.005]
[1754872633160,0.144227,119440.0,119430.0,0.10251291]
[1754872633462,0.9280056,119440.0,119430.0,0.10251291]
[1754872634761,0.9280056,119440.0,119430.0,0.05563352]
[1754872635055,0.0837144,119430.0,119420.0,1.1424444]
[1754872635262,0.89771953,119430.0,119420.0,1.1424444]
[1754872635461,0.89771953,119430.0,119420.0,1.0587233]
[1754872635859,0.99820271,119430.0,119420.0,0.1674422]
[1754872636161,0.2359414,119420.0,119410.0,0.44865298]
[1754872636363,0.83744639,119420.0,119410.0,0.99337298]
[1754872636564,0.89772653,119420.0,119410.0,0.99337298]
[1754872636758,0.89772653,119420.0,119410.0,0.82591718]
[1754872637064,0.2359485,119410.0,119400.0,1.12687006]
[1754872637254,0.47665349,119410.0,119400.0,1.0587229]
[1754872638265,0.47665349,119410.0,119400.0,0.0837321]
[1754872638562,0.63182356,119410.0,119400.0,0.8912521]
[1754872639064,0.63282356,119410.0,119400.0,0.8942521]
[1754872639264,0.63282356,119410.0,119400.0,0.8942555]
[1754872639463,0.63282356,119410.0,119400.0,0.9032555]
[1754872639464,0.63382356,119410.0,119400.0,0.9032555]
[1754872639665,0.41161555,119410.0,119400.0,0.9032555]
[1754872639864,0.63382356,119410.0,119400.0,0.9032555]
[1754872640464,0.59211085,119410.0,119400.0,0.9032955]
[1754872640660,0.59111085,119410.0,119400.0,0.81056]
[1754872640968,0.59111085,119410.0,119400.0,0.01]
[1754872641165,0.59111085,119410.0,119400.0,0.81756]
[1754872641660,1.01219099,119410.0,119400.0,0.81756]
[1754872641964,0.95191085,119410.0,119400.0,0.81756]
[1754872642165,0.95191085,119410.0,119400.0,0.9012955]
[1754872642366,0.95191085,119410.0,119400.0,0.9012555]
[1754872643661,0.95191085,119410.0,119400.0,0.0937355]
[1754872643862,0.95191085,119410.0,119400.0,0.9013355]
[1754872644062,0.72970284,119410.0,119400.0,0.9013355]
[1754872644262,0.95191085,119410.0,119400.0,0.9013355]
[1754872644471,0.95191085,119410.0,119400.0,0.0937355]
[1754872644667,0.95191085,119410.0,119400.0,0.9012955]
[1754872646374,0.95191085,119410.0,119400.0,0.8176]
[1754872646568,0.95191085,119410.0,119400.0,0.01]
[1754872647368,1.01219099,119410.0,119400.0,0.01]
[1754872647576,1.75951085,119410.0,119400.0,0.01]
[1754872647762,1.53730284,119410.0,119400.0,0.01]
[1754872647962,1.75951085,119410.0,119400.0,0.01]
[1754872648370,0.2359623,119390.0,119380.0,1.4097468]
[1754872648571,0.47666729,119390.0,119380.0,1.4097468]
[1754872648772,0.47666729,119390.0,119380.0,2.1336379]
[1754872648962,0.25445928,119390.0,119380.0,2.1336379]
[1754872649163,0.16755928,119390.0,119380.0,2.1336379]
[1754872649361,0.25445928,119390.0,119380.0,2.1336379]
[1754872649572,0.25445928,119390.0,119380.0,0.9754379]
[1754872649765,0.47666729,119390.0,119380.0,0.9754379]
[1754872649968,0.47766729,119390.0,119380.0,0.9784379]
[1754872650169,0.47766729,119390.0,119380.0,0.1707979]
[1754872650368,0.49618575,119390.0,119380.0,0.1707979]
[1754872650576,0.49618575,119390.0,119380.0,0.9836379]
[1754872650771,1.01670294,119390.0,119380.0,0.0033001]
[1754872650964,1.01670294,119390.0,119380.0,0.0103001]
[1754872650965,1.15580294,119390.0,119380.0,0.0103001]
[1754872651662,1.21508308,119390.0,119380.0,0.0073001]
[1754872651865,1.2310054,119390.0,119380.0,0.00183225]
[1754872652074,0.235976,119370.0,119360.0,1.14744]
[1754872652375,0.62813128,119370.0,119360.0,0.33504]
[1754872652579,0.56810972,119370.0,119360.0,1.14744]
[1754872652874,0.57638952,119370.0,119360.0,1.14744]
[1754872653270,0.57738952,119370.0,119360.0,1.14844]
[1754872653774,0.57738952,119370.0,119360.0,1.14816]
[1754872653978,0.57738952,119370.0,119360.0,0.81312]
[1754872654166,0.98547317,119370.0,119340.0,0.4445748]
[1754872654364,0.1160972,119340.0,119330.0,0.77939013]
[1754872654566,0.15305033,119340.0,119330.0,1.57498276]
[1754872656171,0.15305033,119340.0,119330.0,1.57798276]
[1754872656172,0.15505033,119340.0,119330.0,1.57798276]
[1754872656475,0.24866033,119340.0,119330.0,1.57798276]
[1754872656672,0.27467033,119340.0,119330.0,1.57798276]
[1754872656872,0.27467033,119340.0,119330.0,1.57774276]
[1754872657074,0.27467033,119340.0,119330.0,0.6152411]
[1754872657273,0.27467033,119340.0,119330.0,1.4265611]
[1754872657664,0.27467033,119340.0,119330.0,0.6152411]
[1754872658174,0.27367033,119340.0,119330.0,1.3402594]
[1754872658371,0.49587834,119340.0,119330.0,1.3452594]
[1754872658576,0.27467033,119340.0,119330.0,0.9006792]
[1754872658871,0.94755578,119340.0,119330.0,0.0051]
[1754872659080,0.94755578,119340.0,119330.0,0.8215]
[1754872659373,1.00757734,119340.0,119330.0,0.0051]
[1754872659869,1.17516935,119340.0,119330.0,0.0051]
[1754872660478,1.11514779,119340.0,119330.0,0.0051]
[1754872660772,0.95281933,119340.0,119330.0,0.0051]
[1754872661077,1.11514779,119340.0,119330.0,0.0051]
[1754872661273,0.1363716,119320.0,119310.0,0.1726921]
[1754872661569,0.0837986,119310.0,119300.0,1.9499265]
[1754872661776,0.47533359,119310.0,119300.0,2.4259413]
[1754872662081,0.47533359,119310.0,119300.0,1.2761056]
[1754872662380,0.26158527,119310.0,119300.0,0.9153056]
[1754872662573,0.48379328,119310.0,119300.0,0.9153056]
[1754872663072,0.57319642,119310.0,119300.0,0.8375]
[1754872663272,0.57319642,119310.0,119300.0,0.01926]
[1754872663465,0.57319642,119310.0,119300.0,0.83878]
[1754872664077,0.59169384,119310.0,119300.0,0.83368]
[1754872664276,0.36948583,119310.0,119300.0,0.83878]
[1754872664570,0.36948583,119310.0,119270.0,0.37348]
[1754872664571,0.1439697,119280.0,119270.0,0.37348]
[1754872664771,0.83615469,119280.0,119270.0,0.01778]
[1754872664973,0.70632063,119280.0,119270.0,0.1016067]
[1754872665178,0.72506674,119280.0,119270.0,0.01778]
[1754872665374,0.72506674,119280.0,119270.0,0.0838267]
[1754872665674,0.72506674,119280.0,119260.0,1.1624456]
[1754872665675,0.1152967,119270.0,119260.0,1.1624456]
[1754872665869,0.13379368,119270.0,119260.0,1.1624456]
[1754872666068,0.01849698,119270.0,119260.0,1.74263361]
[1754872666269,0.09440318,119270.0,119260.0,1.74545361]
[1754872666576,0.12587318,119270.0,119260.0,1.74545361]
[1754872667472,0.01057698,119270.0,119260.0,1.74545361]
[1754872667673,0.01067698,119270.0,119260.0,1.5232456]
[1754872667874,0.01067698,119270.0,119260.0,1.74545361]
[1754872668374,0.01167698,119270.0,119260.0,1.76255208]
[1754872668579,0.01167698,119270.0,119260.0,1.93124808]
[1754872668580,0.01267698,119270.0,119260.0,1.93124808]
[1754872668779,0.0021,119270.0,119260.0,1.93124808]
[1754872669081,0.0021,119270.0,119260.0,2.23124808]
[1754872669880,0.0021,119270.0,119260.0,2.49404808]
[1754872670280,0.0021,119270.0,119260.0,2.27184007]
[1754872670484,0.0021,119270.0,119260.0,2.49404808]
[1754872670681,0.0021,119270.0,119260.0,2.32635208]
[1754872670877,0.0021,119270.0,119260.0,2.49404808]
[1754872671069,0.0021,119270.0,119260.0,2.23124808]
[1754872671380,0.25312882,119310.0,119300.0,0.0838053]
[1754872671575,0.25312882,119310.0,119300.0,0.9040453]
[1754872671776,0.3444946,119310.0,119300.0,0.9040453]
[1754872672175,0.2014832,119310.0,119300.0,0.9040453]
[1754872672373,0.06599742,119310.0,119300.0,0.9040453]
[1754872672574,0.14979562,119310.0,119300.0,0.9040453]
[1754872672776,0.20801562,119310.0,119300.0,0.9060453]
[1754872672978,0.26722562,119310.0,119300.0,0.9060453]
[1754872673683,0.14786562,119310.0,119300.0,0.9060453]
[1754872674078,0.16897562,119310.0,119300.0,0.9060453]
[1754872674284,0.26722562,119310.0,119300.0,0.9060453]
[1754872674974,0.26722562,119310.0,119300.0,0.91445906]
[1754872675175,0.26722562,119310.0,119300.0,0.8980453]
[1754872677283,0.04557,119310.0,119300.0,1.12025331]
[1754872677481,0.04557,119310.0,119300.0,1.48105331]
[1754872678186,0.06392511,119310.0,119300.0,1.48105331]
[1754872678381,0.03245511,119310.0,119300.0,1.48105331]
[1754872681180,0.06392511,119310.0,119300.0,1.48105331]
[1754872681383,0.03245511,119310.0,119300.0,1.48105331]
[1754872681778,6e-08,119310.0,119300.0,1.6486933]
[1754872681978,0.05985087,119330.0,119320.0,0.0837912]
[1754872682178,0.05985087,119330.0,119320.0,1.47575921]
[1754872682579,0.03147,119330.0,119320.0,1.72712831]
[1754872683191,0.04947,119330.0,119320.0,1.72912831]
[1754872683391,0.04957,119330.0,119320.0,1.72912831]
[1754872683687,0.04957,119330.0,119320.0,2.08992831]
[1754872683688,0.0181,119330.0,119320.0,2.08992831]
[1754872684082,0.10667246,119360.0,119350.0,0.0837702]
[1754872684281,0.03147,119360.0,119350.0,1.48337821]
[1754872685585,0.03147,119360.0,119350.0,1.2611702]
[1754872685779,0.03157,119360.0,119350.0,1.2611702]
[1754872686182,0.03357,119360.0,119350.0,1.2611702]
[1754872688293,0.0021,119360.0,119350.0,1.57409969]
[1754872689095,1e-07,119360.0,119350.0,1.80816129]
[1754872689394,1e-07,119360.0,119350.0,1.80016129]
[1754872689588,1e-07,119360.0,119350.0,1.73366769]
[1754872689995,1e-07,119360.0,119350.0,1.79994684]
[1754872690494,1e-07,119360.0,119350.0,1.78701735]
[1754872695485,1e-07,119360.0,119350.0,1.31628935]
[1754872695691,0.10663806,119360.0,119350.0,1.31600935]
[1754872695893,0.16571806,119360.0,119350.0,1.31600935]
[1754872696095,0.16571806,119360.0,119350.0,0.50284935]
[1754872696291,0.24948096,119360.0,119350.0,1.57876935]
[1754872696491,0.24948096,119360.0,119350.0,1.57076935]
[1754872696686,0.16571806,119360.0,119350.0,0.75764935]
[1754872696898,0.16571806,119360.0,119350.0,1.57056935]
[1754872697497,0.16571806,119360.0,119350.0,1.5042902]
[1754872697998,0.04777806,119360.0,119350.0,0.6913702]
[1754872698200,0.0182253,119360.0,119350.0,1.81721969]
[1754872698389,0.0182253,119360.0,119350.0,1.00429969]
[1754872698589,0.0477953,119360.0,119350.0,1.00429969]
[1754872698794,0.0477953,119360.0,119350.0,1.5717626]
[1754872698993,0.0477953,119360.0,119350.0,1.07185209]
[1754872699189,0.0816053,119360.0,119350.0,1.88469209]
[1754872699802,0.0816053,119360.0,119350.0,1.07185209]
[1754872700002,0.0816053,119360.0,119350.0,1.5718026]
[1754872701295,0.0816053,119360.0,119350.0,1.5708826]
[1754872701496,0.0816053,119360.0,119350.0,0.7589226]
[1754872701691,0.1657353,119360.0,119350.0,0.7589226]
[1754872701904,0.1657353,119360.0,119350.0,1.5707226]
[1754872702303,0.2494982,119360.0,119350.0,1.5031702]
[1754872702499,0.1657353,119360.0,119350.0,1.5031702]
[1754872702693,0.1066553,119360.0,119350.0,1.5031702]
[1754872702896,0.0477953,119360.0,119350.0,1.81609969]
[1754872703607,0.0477953,119360.0,119350.0,1.87417779]
[1754872704806,0.0182253,119360.0,119350.0,1.87417779]
[1754872705398,0.0477953,119360.0,119350.0,1.87417779]
[1754872706102,0.10764617,119360.0,119350.0,1.87417779]
[1754872707606,0.10764617,119360.0,119350.0,1.06237779]
[1754872707806,0.10764617,119360.0,119350.0,1.87409779]
[1754872708306,0.16650617,119360.0,119350.0,0.7494483]
[1754872708506,0.22558617,119360.0,119350.0,1.5609683]
[1754872708711,0.30934917,119360.0,119350.0,1.4948902]
[1754872709807,0.2494983,119360.0,119350.0,1.4948902]
[1754872710309,0.63763015,119360.0,119350.0,0.3225702]
[1754872710607,1.09323459,119360.0,119350.0,0.20952092]
[1754872710907,1.09323459,119360.0,119350.0,0.81064]
[1754872711100,1.09323459,119360.0,119350.0,0.8944101]
[1754872711307,1.01803213,119360.0,119350.0,0.8944101]
[1754872711499,0.65733213,119360.0,119350.0,0.8944101]
[1754872711900,0.1658352,119360.0,119350.0,0.8944101]
[1754872712098,0.1658352,119360.0,119350.0,1.20733959]
[1754872712311,0.1405652,119360.0,119350.0,1.56813959]
[1754872712510,0.1658352,119360.0,119350.0,1.2552101]
[1754872713202,0.2495982,119360.0,119350.0,1.2552101]
[1754872713403,0.2495982,119360.0,119350.0,0.8944101]
[1754872714109,0.30975957,119360.0,119350.0,0.8944101]
[1754872714513,0.2495982,119360.0,119350.0,0.8944101]
[1754872714710,0.1658352,119360.0,119350.0,1.2552101]
[1754872715209,0.2495983,119360.0,119350.0,1.2552101]
[1754872715410,0.2495983,119360.0,119350.0,0.8944101]
[1754872717107,0.1658352,119360.0,119350.0,1.2552101]
[1754872717503,0.2495982,119360.0,119350.0,0.8944101]
[1754872717700,0.2495982,119360.0,119350.0,0.8864101]
[1754872719405,0.82423187,119360.0,119350.0,0.8096]
[1754872719709,0.2275805,119350.0,119330.0,1.51125065]
[1754872719913,0.2334271,119340.0,119330.0,1.51125065]
[1754872720211,0.34303571,119340.0,119330.0,2.32077065]
[1754872720409,0.34303571,119340.0,119330.0,2.3038932]
[1754872720812,0.35149731,119340.0,119330.0,1.0608699]
[1754872721007,0.35149731,119340.0,119330.0,1.0618699]
[1754872721613,0.35149731,119340.0,119330.0,1.0648699]
[1754872721816,0.34303571,119340.0,119330.0,1.0658699]
[1754872722714,0.34303571,119340.0,119330.0,1.0648699]
[1754872723113,0.34303571,119340.0,119330.0,1.0646299]
[1754872723719,0.34303571,119340.0,119330.0,1.0626299]
[1754872723914,0.34303571,119340.0,119330.0,1.0636299]
[1754872724410,0.13907861,119340.0,119330.0,1.4244299]
[1754872724616,0.0477952,119340.0,119330.0,1.4244299]
[1754872724911,0.0477952,119340.0,119330.0,1.4164299]
[1754872725117,0.1315722,119340.0,119330.0,1.4164299]
[1754872725416,0.0477952,119340.0,119330.0,1.4164299]
[1754872725912,0.0183252,119340.0,119330.0,1.72935939]
[1754872726704,0.0477952,119340.0,119330.0,1.72935939]
[1754872728712,0.1932996,119360.0,119330.0,1.72935939]
[1754872728910,0.1226601,119350.0,119340.0,0.3141283]
[1754872729113,0.1226601,119350.0,119340.0,1.8450483]
[1754872729512,0.03889,119350.0,119340.0,1.8450483]
[1754872729920,0.1226601,119350.0,119340.0,1.8450483]
[1754872730217,0.1227601,119350.0,119340.0,1.8450483]
[1754872730410,0.1440201,119350.0,119340.0,1.8450483]
[1754872730814,0.2335201,119350.0,119340.0,1.8450483]
[1754872731318,0.2345201,119350.0,119340.0,1.8460483]
[1754872731509,0.2345201,119350.0,119340.0,1.8166983]
[1754872731806,0.2345201,119350.0,119340.0,1.8086983]
[1754872732410,0.2345201,119350.0,119340.0,1.8076983]
[1754872732616,0.2345201,119350.0,119340.0,1.8096983]
[1754872732815,0.15075,119350.0,119340.0,1.8310483]
[1754872733017,0.03057,119350.0,119340.0,2.14397779]
[1754872733405,0.1143401,119350.0,119340.0,2.14397779]
[1754872733722,0.1143401,119350.0,119340.0,1.8310483]
[1754872734318,0.1143401,119350.0,119340.0,1.8310083]
[1754872734319,0.2345201,119350.0,119340.0,1.8310083]
[1754872734519,0.2335201,119350.0,119340.0,1.8320083]
[1754872735315,0.54644959,119350.0,119340.0,0.9436883]
[1754872735522,0.64270879,119350.0,119340.0,1.7180483]
[1754872735713,0.64270879,119350.0,119340.0,1.6684771]
[1754872736023,0.64370879,119350.0,119340.0,1.6909671]
[1754872736514,0.3307793,119350.0,119340.0,1.6909671]
[1754872736913,0.2707493,119350.0,119340.0,1.6909671]
[1754872737112,0.2707493,119350.0,119340.0,1.7113171]
[1754872737113,0.3307793,119350.0,119340.0,1.7113171]
[1754872737319,0.2707493,119350.0,119340.0,1.7113171]
[1754872737514,0.3050193,119350.0,119340.0,1.7113171]
[1754872737713,0.3307793,119350.0,119340.0,1.7113171]
[1754872738421,0.0011,119350.0,119340.0,2.02424659]
[1754872738920,0.0011,119350.0,119340.0,2.01624659]
[1754872739721,0.0011,119350.0,119340.0,2.26624659]
[1754872740918,0.01826666,119350.0,119340.0,2.26624659]
[1754872741424,0.01826666,119350.0,119340.0,2.31727793]
[1754872742132,0.26826666,119350.0,119340.0,2.31727793]
[1754872742423,0.29773666,119350.0,119340.0,2.31727793]
[1754872742624,0.26826666,119350.0,119340.0,2.31727793]
[1754872743123,0.26826666,119350.0,119340.0,1.59567793]
[1754872743325,0.26826666,119350.0,119340.0,2.31727793]
[1754872744721,0.26826666,119350.0,119340.0,2.00434844]
[1754872745226,0.26826666,119350.0,119340.0,2.31727793]
[1754872746022,0.29833666,119350.0,119340.0,2.30927793]
[1754872746231,0.29833666,119350.0,119340.0,1.99634844]
[1754872746424,0.29833666,119350.0,119340.0,2.30927793]
[1754872748627,0.49254656,119350.0,119340.0,1.99634844]
[1754872748832,0.52383656,119350.0,119340.0,1.99634844]
[1754872749529,0.52383656,119350.0,119340.0,1.97479844]
[1754872750330,0.58408769,119350.0,119340.0,1.97479844]
[1754872750525,0.58408769,119350.0,119340.0,2.00603844]
[1754872751937,0.52383656,119350.0,119340.0,2.00603844]
[1754872752532,0.52383656,119350.0,119340.0,2.31896793]
[1754872752533,0.37334666,119350.0,119340.0,2.31896793]
[1754872752732,0.26826666,119350.0,119340.0,2.31896793]
[1754872753135,0.26826666,119350.0,119340.0,2.31096793]
[1754872753433,0.26826666,119350.0,119340.0,2.25993659]
[1754872755831,0.26826666,119350.0,119340.0,2.22869659]
[1754872756031,0.52383666,119350.0,119340.0,1.1379271]
[1754872756333,0.52383666,119350.0,119340.0,1.9156871]
[1754872758133,0.52383666,119350.0,119340.0,1.8579971]
[1754872758838,0.52383666,119350.0,119340.0,1.8949171]
[1754872759341,0.52383666,119350.0,119340.0,1.9165071]
[1754872759536,0.52383666,119350.0,119340.0,1.9477471]
[1754872760136,0.52383666,119350.0,119340.0,1.9397471]
[1754872760943,0.3263176,119360.0,119350.0,0.17446]
[1754872761137,0.3263176,119360.0,119350.0,0.61903]
[1754872761336,0.42169667,119360.0,119350.0,0.61903]
[1754872761539,0.42169667,119360.0,119350.0,0.53526]
[1754872761838,0.42169667,119360.0,119350.0,0.61903]
[1754872762039,0.42179667,119360.0,119350.0,0.61903]
[1754872763036,0.51858667,119360.0,119350.0,0.61903]
[1754872763343,0.51958667,119360.0,119350.0,0.61903]
[1754872764542,0.51958667,119360.0,119350.0,0.53526]
[1754872766838,0.51958667,119360.0,119350.0,0.61903]
[1754872767140,0.51958667,119360.0,119350.0,0.61103]
[1754872767340,0.51958667,119360.0,119350.0,0.52726]
[1754872768542,0.51958667,119360.0,119350.0,0.61103]
[1754872771337,0.51958667,119360.0,119350.0,0.52726]
[1754872772140,0.58770295,119360.0,119350.0,0.3608]
[1754872772339,0.97786869,119360.0,119350.0,0.18055217]
[1754872772644,1.05324647,119360.0,119350.0,0.18055217]
[1754872772841,0.1587801,119350.0,119340.0,1.48752]
[1754872773142,0.67970815,119350.0,119340.0,1.52079]
[1754872773344,0.60433037,119350.0,119340.0,1.52079]
[1754872774049,0.38173263,119350.0,119340.0,1.52079]
[1754872774250,0.60433037,119350.0,119340.0,1.51279]
[1754872775549,0.70983215,119350.0,119340.0,1.51379]
[1754872777551,0.48723441,119350.0,119340.0,1.51379]
[1754872777752,0.38173263,119350.0,119340.0,1.51379]
[1754872777947,0.38173263,119350.0,119340.0,1.5975671]
[1754872778155,0.38173263,119350.0,119340.0,1.51379]
[1754872778357,0.38173263,119350.0,119340.0,1.49413281]
[1754872778754,0.38173263,119350.0,119340.0,0.76113281]
[1754872779144,0.38173263,119350.0,119340.0,1.56957281]
[1754872779348,0.28494263,119350.0,119340.0,1.65334991]
[1754872779650,0.23219263,119350.0,119340.0,1.65330991]
[1754872780658,0.27002263,119350.0,119340.0,1.65330991]
[1754872781857,0.20993263,119350.0,119340.0,1.87590765]
[1754872782158,0.37966028,119360.0,119340.0,2.03545735]
[1754872782357,0.311544,119360.0,119350.0,0.86122784]
[1754872782554,0.2277744,119360.0,119350.0,0.6386301]
[1754872782760,0.2277744,119360.0,119350.0,0.86122784]